[Event "Juniorallsvenskan 2019, Division 1 and 2"]
[Site "Molnlycke kulturhus, Biblioteksgatan 2, Molnlycke, Sweden"]
[Date "2019.11.24"]
[Round "4.13"]
[White "Derdic, Valentin"]
[Black "Tornberg, Carlos"]
[Result "1-0"]
[TimeControl "90 minutes + 30 seconds per move from move one"]
[WhiteFideId "1763687"]
[BlackFideId "1733478"]
[WhiteElo "1647"]
[BlackElo "1884"]

1. e4 {[%clk 01:30:56]} {[%emt 00:00:04]} e5 {[%clk 01:31:00]} {[%emt
00:00:01]} 2. Nf3 {[%clk 01:31:09]} {[%emt 00:00:15]} Nc6 {[%clk 01:31:29]}
{[%emt 00:00:02]} 3. Bb5 {[%clk 01:31:20]} {[%emt 00:00:18]} a6 {[%clk
01:31:43]} {[%emt 00:00:17]} 4. Ba4 {[%clk 01:31:45]} {[%emt 00:00:05]} d6
{[%clk 01:32:09]} {[%emt 00:00:05]} 5. c3 {[%clk 01:30:17]} {[%emt 00:01:57]}
f5 {[%clk 01:32:34]} {[%emt 00:00:06]} 6. exf5 {[%clk 01:30:35]} {[%emt
00:00:12]} Bxf5 {[%clk 01:32:49]} {[%emt 00:00:15]} 7. d3 {[%clk 01:29:47]}
{[%emt 00:01:18]} Be7 {[%clk 01:30:25]} {[%emt 00:02:53]} 8. Be3 {[%clk
01:27:09]} {[%emt 00:03:08]} Nf6 {[%clk 01:29:33]} {[%emt 00:01:23]} 9. h3
{[%clk 01:27:00]} {[%emt 00:00:39]} O-O {[%clk 01:29:10]} {[%emt 00:00:53]} 10.
O-O {[%clk 01:21:36]} {[%emt 00:05:54]} b5 {[%clk 01:18:46]} {[%emt 00:10:56]}
11. Bc2 {[%clk 01:18:08]} {[%emt 00:03:55]} Qe8 {[%clk 01:09:01]} {[%emt
00:10:17]} 12. Nbd2 {[%clk 00:59:35]} {[%emt 00:19:02]} d5 {[%clk 00:55:53]}
{[%emt 00:13:38]} 13. Re1 {[%clk 00:49:53]} {[%emt 00:10:11]} Rd8 {[%clk
00:49:07]} {[%emt 00:07:17]} 14. Nf1 {[%clk 00:46:15]} {[%emt 00:04:07]} Bd6
{[%clk 00:37:40]} {[%emt 00:11:58]} 15. Ng3 {[%clk 00:42:51]} {[%emt 00:03:51]}
Bc8 {[%clk 00:32:32]} {[%emt 00:05:42]} 16. Qd2 {[%clk 00:36:11]} {[%emt
00:07:09]} e4 {[%clk 00:25:58]} {[%emt 00:07:05]} 17. Bg5 {[%clk 00:30:15]}
{[%emt 00:06:26]} Bxg3 {[%clk 00:17:50]} {[%emt 00:08:38]} 18. fxg3 {[%clk
00:30:21]} {[%emt 00:00:22]} h6 {[%clk 00:16:31]} {[%emt 00:01:51]} 19. Bf4
{[%clk 00:26:03]} {[%emt 00:04:47]} Qh5 {[%clk 00:11:38]} {[%emt 00:05:24]} 20.
Nh2 {[%clk 00:24:53]} {[%emt 00:01:39]} Ne5 {[%clk 00:06:43]} {[%emt 00:05:25]}
21. Bd1 {[%clk 00:24:09]} {[%emt 00:01:15]} Qe8 {[%clk 00:06:52]} {[%emt
00:00:22]} 22. Bxe5 {[%clk 00:20:05]} {[%emt 00:04:32]} Qxe5 {[%clk 00:07:04]}
{[%emt 00:00:18]} 23. Qe3 {[%clk 00:17:49]} {[%emt 00:02:45]} Qd6 {[%clk
00:07:04]} {[%emt 00:00:32]} 24. Bb3 {[%clk 00:17:08]} {[%emt 00:01:11]} Kh8
{[%clk 00:07:03]} {[%emt 00:00:31]} 25. Rad1 {[%clk 00:15:56]} {[%emt
00:01:42]} c5 {[%clk 00:05:49]} {[%emt 00:01:44]} 26. dxe4 {[%clk 00:16:02]}
{[%emt 00:00:24]} Nxe4 {[%clk 00:05:43]} {[%emt 00:00:35]} 27. Rxd5 {[%clk
00:16:07]} {[%emt 00:00:25]} Qb6 {[%clk 00:01:41]} {[%emt 00:04:32]} 28. Rxd8
{[%clk 00:10:55]} {[%emt 00:05:42]} Rxd8 {[%clk 00:02:05]} {[%emt 00:00:05]} 29.
Qxe4 {[%clk 00:09:59]} {[%emt 00:01:27]} c4+ {[%clk 00:02:21]} {[%emt
00:00:15]} 30. Qe3 {[%clk 00:10:17]} {[%emt 00:00:11]} Qxe3+ {[%clk 00:02:04]}
{[%emt 00:00:48]} 31. Rxe3 {[%clk 00:10:40]} {[%emt 00:00:05]} cxb3 {[%clk
00:02:29]} {[%emt 00:00:05]} 32. axb3 {[%clk 00:11:02]} {[%emt 00:00:08]} Bf5
{[%clk 00:00:50]} {[%emt 00:02:10]} 33. Kf2 {[%clk 00:10:28]} {[%emt 00:01:02]}
Rd1 {[%clk 00:00:58]} {[%emt 00:00:24]} 34. b4 {[%clk 00:08:53]} {[%emt
00:02:05]} Rd6 {[%clk 00:00:37]} {[%emt 00:00:51]} 35. Nf3 {[%clk 00:08:35]}
{[%emt 00:00:47]} Bd3 {[%clk 00:00:38]} {[%emt 00:00:29]} 36. Ne5 {[%clk
00:08:54]} {[%emt 00:00:12]} Bc4 {[%clk 00:00:32]} {[%emt 00:00:37]} 37. Nxc4
{[%clk 00:08:10]} {[%emt 00:01:14]} bxc4 {[%clk 00:01:01]} {[%emt 00:00:01]} 38.
Re4 {[%clk 00:08:20]} {[%emt 00:00:20]} Rd2+ {[%clk 00:01:20]} {[%emt
00:00:11]} 39. Re2 {[%clk 00:08:28]} {[%emt 00:00:21]} Rd6 {[%clk 00:01:49]} 40.
Kf3 {[%clk 00:08:29]} {[%emt 00:00:30]} Kh7 {[%clk 00:01:39]} {[%emt 00:00:40]}
41. Re4 {[%clk 00:08:45]} {[%emt 00:00:14]} Rd2 {[%clk 00:01:40]} {[%emt
00:00:29]} 42. Rxc4 {[%clk 00:09:10]} {[%emt 00:00:05]} Rxb2 {[%clk 00:01:57]}
{[%emt 00:00:13]} 43. Rc6 {[%clk 00:08:56]} {[%emt 00:00:44]} Rc2 {[%clk
00:01:58]} {[%emt 00:00:29]} 44. Ke4 {[%clk 00:08:29]} {[%emt 00:00:56]} Rxg2
{[%clk 00:02:07]} {[%emt 00:00:22]} 45. Rxa6 {[%clk 00:08:51]} {[%emt
00:00:07]} Rxg3 {[%clk 00:02:23]} {[%emt 00:00:15]} 46. Rc6 {[%clk 00:07:38]}
{[%emt 00:01:42]} Rxh3 {[%clk 00:02:32]} {[%emt 00:00:21]} 47. b5 {[%clk
00:08:02]} {[%emt 00:00:07]} Rh1 {[%clk 00:01:32]} {[%emt 00:01:30]} 48. b6
{[%clk 00:08:01]} {[%emt 00:00:31]} Rb1 {[%clk 00:01:48]} {[%emt 00:00:14]} 49.
c4 {[%clk 00:08:20]} {[%emt 00:00:11]} Rb3 {[%clk 00:01:07]} {[%emt 00:01:11]}
50. c5 {[%clk 00:07:57]} {[%emt 00:00:53]} h5 {[%clk 00:01:22]} {[%emt
00:00:15]} 51. Rd6 {[%clk 00:06:34]} {[%emt 00:01:53]} h4 {[%clk 00:01:23]}
{[%emt 00:00:29]} 52. Rd1 {[%clk 00:06:36]} {[%emt 00:00:27]} h3 {[%clk
00:00:40]} {[%emt 00:01:13]} 53. Kd5 {[%clk 00:04:17]} {[%emt 00:02:49]} h2
{[%clk 00:00:33]} {[%emt 00:00:38]} 54. Rh1 {[%clk 00:04:32]} {[%emt 00:00:15]}
g5 {[%clk 00:00:38]} {[%emt 00:00:25]} 55. Rxh2+ {[%clk 00:04:51]} {[%emt
00:00:11]} Kg7 {[%clk 00:00:57]} {[%emt 00:00:10]} 56. Kc6 {[%clk 00:05:14]}
{[%emt 00:00:07]} 1-0

[Event "Juniorallsvenskan 2019, Division 1 and 2"]
[Site "Molnlycke kulturhus, Biblioteksgatan 2, Molnlycke, Sweden"]
[Date "2019.11.24"]
[Round "4.14"]
[White "Morling, Joakim"]
[Black "Jonsson, Filip"]
[Result "0-1"]
[TimeControl "90 minutes + 30 seconds per move from move one"]
[WhiteFideId "1715933"]
[BlackFideId "1739441"]
[WhiteElo "2090"]
[BlackElo "1952"]

1. d4 {[%clk 01:30:48]} {[%emt 00:00:11]} d5 {[%clk 01:30:54]} {[%emt
00:00:07]} 2. c4 {[%clk 01:31:10]} {[%emt 00:00:07]} e6 {[%clk 01:31:19]}
{[%emt 00:00:05]} 3. Nc3 {[%clk 01:31:14]} {[%emt 00:00:27]} c5 {[%clk
01:31:41]} {[%emt 00:00:07]} 4. cxd5 {[%clk 01:29:48]} {[%emt 00:01:57]} exd5
{[%clk 01:32:04]} {[%emt 00:00:06]} 5. Nf3 {[%clk 01:29:57]} {[%emt 00:00:21]}
Nc6 {[%clk 01:32:09]} {[%emt 00:00:25]} 6. g3 {[%clk 01:28:04]} {[%emt
00:02:23]} Nf6 {[%clk 01:32:32]} {[%emt 00:00:08]} 7. Bg2 {[%clk 01:26:46]}
{[%emt 00:01:48]} Be7 {[%clk 01:32:54]} {[%emt 00:00:08]} 8. O-O {[%clk
01:26:38]} {[%emt 00:00:37]} O-O {[%clk 01:33:18]} {[%emt 00:00:06]} 9. Bg5
{[%clk 01:14:49]} {[%emt 00:12:19]} c4 {[%clk 01:33:39]} {[%emt 00:00:09]} 10.
Ne1 {[%clk 01:09:04]} {[%emt 00:06:16]} Be6 {[%clk 01:33:01]} {[%emt 00:01:07]}
11. Nc2 {[%clk 01:07:31]} {[%emt 00:02:02]} h6 {[%clk 01:31:58]} {[%emt
00:01:34]} 12. Bf4 {[%clk 00:59:23]} {[%emt 00:08:38]} Bf5 {[%clk 01:18:36]}
{[%emt 00:13:52]} 13. Be5 {[%clk 00:53:05]} {[%emt 00:06:48]} Ng4 {[%clk
01:07:09]} {[%emt 00:11:57]} 14. Nxd5 {[%clk 00:41:19]} {[%emt 00:12:17]} Ncxe5
{[%clk 01:01:36]} {[%emt 00:06:02]} 15. dxe5 {[%clk 00:36:31]} {[%emt
00:05:18]} Bc5 {[%clk 00:58:56]} {[%emt 00:03:09]} 16. Nd4 {[%clk 00:36:11]}
{[%emt 00:00:52]} Be6 {[%clk 00:58:04]} {[%emt 00:01:20]} 17. Nxe6 {[%clk
00:35:38]} {[%emt 00:01:04]} fxe6 {[%clk 00:58:18]} {[%emt 00:00:15]} 18. Nf4
{[%clk 00:36:02]} {[%emt 00:00:07]} Qb6 {[%clk 00:58:27]} {[%emt 00:00:20]} 19.
e3 {[%clk 00:28:53]} {[%emt 00:07:40]} Nxf2 {[%clk 00:57:18]} {[%emt 00:01:39]}
20. Rxf2 {[%clk 00:21:41]} {[%emt 00:07:42]} Bxe3 {[%clk 00:57:32]} {[%emt
00:00:16]} 21. Qc2 {[%clk 00:19:02]} {[%emt 00:03:09]} Bxf2+ {[%clk 00:57:38]}
{[%emt 00:00:25]} 22. Kh1 {[%clk 00:19:22]} {[%emt 00:00:10]} Be3 {[%clk
00:55:32]} {[%emt 00:02:35]} 23. Nh5 {[%clk 00:16:19]} {[%emt 00:03:34]} Qd4
{[%clk 00:47:40]} {[%emt 00:08:20]} 24. Qg6 {[%clk 00:11:37]} {[%emt 00:05:13]}
Qxe5 {[%clk 00:46:34]} {[%emt 00:01:37]} 25. Be4 {[%clk 00:11:59]} {[%emt
00:00:08]} Rf2 {[%clk 00:41:55]} {[%emt 00:05:08]} 26. Rd1 {[%clk 00:04:40]}
{[%emt 00:07:49]} Qxb2 {[%clk 00:37:45]} {[%emt 00:04:40]} 27. Qxe6+ {[%clk
00:03:19]} {[%emt 00:01:51]} Kh8 {[%clk 00:37:52]} {[%emt 00:00:22]} 28. Qh3
{[%clk 00:03:17]} {[%emt 00:00:33]} Qe2 {[%clk 00:37:22]} {[%emt 00:00:59]} 29.
Rb1 {[%clk 00:02:27]} {[%emt 00:01:21]} Raf8 {[%clk 00:36:57]} {[%emt
00:00:55]} 30. Bg2 {[%clk 00:02:22]} {[%emt 00:00:35]} c3 {[%clk 00:36:08]}
{[%emt 00:01:18]} 31. Nxg7 {[%clk 00:01:47]} {[%emt 00:01:06]} c2 {[%clk
00:35:25]} {[%emt 00:01:12]} 32. Rg1 {[%clk 00:00:40]} {[%emt 00:01:38]} Rxg2
{[%clk 00:35:34]} {[%emt 00:00:20]} 0-1

[Event "Juniorallsvenskan 2019, Division 1 and 2"]
[Site "Molnlycke kulturhus, Biblioteksgatan 2, Molnlycke, Sweden"]
[Date "2019.11.24"]
[Round "4.15"]
[White "Mena, Markus"]
[Black "Ostenfeld, Valentin"]
[Result "0-1"]
[TimeControl "90 minutes + 30 seconds per move from move one"]
[WhiteFideId "1745123"]
[BlackFideId "1759183"]
[WhiteElo "1405"]
[BlackElo "1856"]

1. e4 {[%clk 01:30:58]} {[%emt 00:00:02]} c5 {[%clk 01:30:52]} {[%emt
00:00:07]} 2. Nf3 {[%clk 01:31:11]} {[%emt 00:00:17]} Nc6 {[%clk 01:31:15]}
{[%emt 00:00:07]} 3. d4 {[%clk 01:31:27]} {[%emt 00:00:15]} cxd4 {[%clk
01:31:34]} {[%emt 00:00:09]} 4. Nxd4 {[%clk 01:31:51]} {[%emt 00:00:08]} Nf6
{[%clk 01:31:51]} {[%emt 00:00:12]} 5. Nc3 {[%clk 01:32:17]} {[%emt 00:00:05]}
e5 {[%clk 01:32:13]} {[%emt 00:00:08]} 6. Nxc6 {[%clk 01:30:41]} {[%emt
00:02:06]} bxc6 {[%clk 01:32:36]} {[%emt 00:00:07]} 7. Bc4 {[%clk 01:29:55]}
{[%emt 00:01:16]} Bb4 {[%clk 01:32:41]} {[%emt 00:00:24]} 8. Bg5 {[%clk
01:22:13]} {[%emt 00:08:13]} Qa5 {[%clk 01:28:13]} {[%emt 00:04:57]} 9. Qf3
{[%clk 01:14:02]} {[%emt 00:08:42]} Be7 {[%clk 01:13:50]} {[%emt 00:14:52]} 10.
O-O {[%clk 01:10:25]} {[%emt 00:04:08]} h6 {[%clk 01:11:22]} {[%emt 00:02:57]}
11. Bh4 {[%clk 01:05:19]} {[%emt 00:05:37]} d6 {[%clk 01:09:35]} {[%emt
00:02:16]} 12. Rfe1 {[%clk 01:00:06]} {[%emt 00:05:43]} O-O {[%clk 01:08:49]}
{[%emt 00:01:15]} 13. h3 {[%clk 00:56:12]} {[%emt 00:04:26]} Rb8 {[%clk
01:05:30]} {[%emt 00:03:48]} 14. Bb3 {[%clk 00:51:49]} {[%emt 00:04:54]} Qc7
{[%clk 00:59:57]} {[%emt 00:06:01]} 15. Rad1 {[%clk 00:47:12]} {[%emt
00:05:09]} Nh7 {[%clk 00:55:10]} {[%emt 00:05:16]} 16. Bxe7 {[%clk 00:44:27]}
{[%emt 00:03:15]} Qxe7 {[%clk 00:55:35]} {[%emt 00:00:06]} 17. Rd2 {[%clk
00:41:19]} {[%emt 00:03:38]} Ng5 {[%clk 00:49:57]} {[%emt 00:06:07]} 18. Qg3
{[%clk 00:35:29]} {[%emt 00:06:21]} Ne6 {[%clk 00:48:19]} {[%emt 00:02:07]} 19.
Red1 {[%emt 00:06:16]} Rd8 {[%clk 00:46:50]} 20. Ne2 {[%clk 00:24:00]} {[%emt
00:08:12]} Ba6 {[%clk 00:44:54]} {[%emt 00:02:26]} 21. Qg4 {[%clk 00:20:56]}
{[%emt 00:03:34]} Nc5 {[%clk 00:37:38]} {[%emt 00:07:46]} 22. Ng3 {[%clk
00:19:11]} {[%emt 00:02:14]} Bc8 {[%clk 00:37:16]} {[%emt 00:00:53]} 23. Nf5
{[%clk 00:17:29]} {[%emt 00:02:12]} Bxf5 {[%clk 00:37:24]} {[%emt 00:00:21]} 24.
Qxf5 {[%clk 00:17:13]} {[%emt 00:00:46]} a5 {[%clk 00:37:11]} {[%emt 00:00:43]}
25. c3 {[%clk 00:15:15]} {[%emt 00:02:28]} Nxb3 {[%clk 00:37:20]} {[%emt
00:00:21]} 26. axb3 {[%clk 00:15:23]} {[%emt 00:00:23]} g6 {[%clk 00:33:57]}
{[%emt 00:03:52]} 27. Qg4 {[%clk 00:13:48]} {[%emt 00:02:06]} Rxb3 {[%clk
00:33:34]} {[%emt 00:00:53]} 28. c4 {[%clk 00:11:39]} {[%emt 00:02:40]} Qc7
{[%clk 00:31:52]} {[%emt 00:02:09]} 29. Qh4 {[%clk 00:09:39]} {[%emt 00:02:31]}
Kg7 {[%clk 00:31:56]} {[%emt 00:00:25]} 30. c5 {[%clk 00:08:20]} {[%emt
00:01:50]} d5 {[%clk 00:31:35]} {[%emt 00:00:51]} 31. exd5 {[%clk 00:06:56]}
{[%emt 00:01:55]} Rxd5 {[%clk 00:31:55]} {[%emt 00:00:09]} 32. Qe4 {[%clk
00:05:48]} {[%emt 00:01:39]} Rb4 {[%clk 00:30:16]} {[%emt 00:02:09]} 33. Qc2
{[%clk 00:05:20]} {[%emt 00:00:58]} Rbd4 {[%clk 00:30:27]} {[%emt 00:00:18]} 34.
Qc3 {[%clk 00:04:31]} {[%emt 00:01:20]} Qd8 {[%clk 00:28:25]} {[%emt 00:02:31]}
35. Rxd4 {[%clk 00:02:29]} {[%emt 00:02:33]} exd4 {[%clk 00:28:35]} {[%emt
00:00:19]} 36. Qc4 {[%clk 00:01:53]} {[%emt 00:01:06]} d3 {[%clk 00:28:49]}
{[%emt 00:00:16]} 37. Qc3+ {[%clk 00:01:42]} {[%emt 00:00:42]} Kh7 {[%clk
00:28:59]} {[%emt 00:00:19]} 38. Rd2 {[%clk 00:01:23]} {[%emt 00:00:49]} h5
{[%clk 00:28:36]} {[%emt 00:00:52]} 39. Kh2 {[%clk 00:01:27]} {[%emt 00:00:27]}
a4 {[%clk 00:28:25]} {[%emt 00:00:41]} 40. Qb4 {[%clk 00:00:57]} {[%emt
00:01:01]} Rd4 {[%clk 00:26:58]} {[%emt 00:01:57]} 41. Qc3 {[%clk 00:00:45]}
{[%emt 00:00:42]} Qd5 {[%clk 00:27:01]} {[%emt 00:00:26]} 42. g3 {[%clk
00:00:37]} {[%emt 00:00:40]} Qe4 {[%clk 00:25:20]} {[%emt 00:02:09]} 43. Rd1
{[%clk 00:00:31]} {[%emt 00:00:36]} d2 {[%clk 00:23:58]} {[%emt 00:01:51]} 44.
Rxd2 {[%clk 00:00:31]} {[%emt 00:00:32]} Rc4 {[%clk 00:23:57]} {[%emt
00:00:30]} 45. Qe3 {[%clk 00:00:35]} {[%emt 00:00:26]} Qxe3 {[%clk 00:24:13]}
{[%emt 00:00:14]} 46. fxe3 {[%clk 00:01:01]} {[%emt 00:00:05]} Rxc5 {[%clk
00:24:39]} {[%emt 00:00:04]} 47. Kg2 {[%clk 00:00:54]} {[%emt 00:00:36]} Kg7
{[%clk 00:24:26]} {[%emt 00:00:42]} 48. Kf3 {[%clk 00:01:10]} {[%emt 00:00:16]}
Rc4 {[%clk 00:24:41]} {[%emt 00:00:13]} 49. Rd3 {[%clk 00:00:37]} {[%emt
00:01:05]} Rb4 {[%clk 00:24:48]} {[%emt 00:00:23]} 50. Ra3 {[%clk 00:00:32]}
{[%emt 00:00:34]} c5 {[%clk 00:25:04]} {[%emt 00:00:14]} 51. Ke2 {[%clk
00:00:39]} {[%emt 00:00:23]} Rxb2+ {[%clk 00:25:28]} {[%emt 00:00:06]} 52. Kd3
{[%clk 00:01:00]} {[%emt 00:00:10]} Rb3+ {[%clk 00:25:51]} {[%emt 00:00:07]} 53.
Rxb3 {[%clk 00:01:19]} {[%emt 00:00:11]} axb3 {[%clk 00:26:17]} {[%emt
00:00:04]} 54. Kc3 {[%clk 00:01:44]} {[%emt 00:00:05]} c4 {[%clk 00:26:43]}
{[%emt 00:00:04]} 55. Kb2 {[%clk 00:01:38]} {[%emt 00:00:36]} Kf6 {[%clk
00:27:05]} {[%emt 00:00:07]} 56. Kc3 {[%clk 00:02:00]} {[%emt 00:00:09]} Ke5
{[%clk 00:27:21]} {[%emt 00:00:14]} 57. g4 {[%clk 00:01:54]} {[%emt 00:00:36]}
h4 {[%clk 00:27:45]} {[%emt 00:00:05]} 58. g5 {[%clk 00:02:16]} {[%emt
00:00:09]} Ke4 {[%clk 00:28:08]} {[%emt 00:00:06]} 59. Kd2 {[%clk 00:02:28]}
{[%emt 00:00:18]} b2 {[%clk 00:28:30]} {[%emt 00:00:08]} 60. Kc2 {[%clk
00:02:42]} {[%emt 00:00:17]} c3 {[%clk 00:28:53]} {[%emt 00:00:07]} 61. Kb1
{[%clk 00:02:55]} {[%emt 00:00:17]} Kxe3 {[%clk 00:29:13]} {[%emt 00:00:09]} 62.
Kc2 {[%clk 00:03:17]} {[%emt 00:00:09]} b1=Q+ {[%clk 00:29:36]} {[%emt
00:00:06]} 63. Kxb1 {[%clk 00:03:40]} {[%emt 00:00:08]} Kd2 {[%clk 00:29:53]}
{[%emt 00:00:12]} 0-1

[Event "Juniorallsvenskan 2019, Division 1 and 2"]
[Site "Molnlycke kulturhus, Biblioteksgatan 2, Molnlycke, Sweden"]
[Date "2019.11.24"]
[Round "4.16"]
[White "Ekberg, Karl"]
[Black "Fakhr Eldin, Majed"]
[Result "1-0"]
[TimeControl "90 minutes + 30 seconds per move from move one"]
[WhiteFideId "1726277"]
[BlackFideId "1744054"]
[WhiteElo "1867"]
[BlackElo "1571"]

1. d4 {[%clk 01:30:51]} {[%emt 00:11:16]} Nf6 {[%clk 01:30:53]} {[%emt
00:00:08]} 2. c4 {[%clk 01:31:15]} {[%emt 00:00:06]} g6 {[%clk 01:31:15]}
{[%emt 00:00:08]} 3. Nc3 {[%clk 01:31:36]} {[%emt 00:00:09]} Bg7 {[%clk
01:31:35]} {[%emt 00:00:09]} 4. e4 {[%clk 01:31:58]} {[%emt 00:00:09]} d6
{[%clk 01:31:21]} {[%emt 00:00:45]} 5. f3 {[%clk 01:32:21]} {[%emt 00:00:07]}
O-O {[%clk 01:31:42]} {[%emt 00:00:08]} 6. Be3 {[%clk 01:32:43]} {[%emt
00:00:07]} Nfd7 {[%clk 01:29:50]} {[%emt 00:02:23]} 7. Qd2 {[%clk 01:24:15]}
{[%emt 00:08:58]} c5 {[%clk 01:27:32]} {[%emt 00:02:48]} 8. Nge2 {[%clk
01:20:12]} {[%emt 00:04:33]} Nc6 {[%clk 01:22:16]} {[%emt 00:05:46]} 9. d5
{[%clk 01:04:33]} {[%emt 00:16:09]} Nce5 {[%clk 01:10:19]} {[%emt 00:12:27]} 10.
Nf4 {[%clk 00:54:56]} {[%emt 00:10:06]} Nb6 {[%clk 00:35:46]} {[%emt 00:35:03]}
11. b3 {[%clk 00:55:02]} {[%emt 00:00:25]} a5 {[%clk 00:32:35]} {[%emt
00:03:41]} 12. a4 {[%clk 00:53:54]} {[%emt 00:01:37]} Nbd7 {[%clk 00:30:43]}
{[%emt 00:02:22]} 13. O-O-O {[%clk 00:47:48]} {[%emt 00:06:36]} Nb8 {[%clk
00:28:54]} {[%emt 00:02:20]} 14. Nd3 {[%clk 00:47:05]} {[%emt 00:01:13]} Qb6
{[%clk 00:19:55]} {[%emt 00:09:29]} 15. Nb5 {[%clk 00:46:38]} {[%emt 00:00:56]}
Na6 {[%clk 00:19:05]} {[%emt 00:01:20]} 16. Bh6 {[%clk 00:45:22]} {[%emt
00:01:46]} Bh8 {[%clk 00:16:38]} {[%emt 00:02:58]} 17. Bxf8 {[%clk 00:42:35]}
{[%emt 00:03:16]} Kxf8 {[%clk 00:16:59]} {[%emt 00:00:10]} 18. Kb1 {[%clk
00:28:28]} {[%emt 00:14:36]} Bd7 {[%clk 00:16:19]} {[%emt 00:01:10]} 19. Nxe5
{[%clk 00:26:25]} {[%emt 00:02:34]} Bxe5 {[%clk 00:16:38]} {[%emt 00:00:11]} 20.
f4 {[%clk 00:25:41]} {[%emt 00:01:13]} Bg7 {[%clk 00:14:36]} {[%emt 00:02:32]}
21. Rc1 {[%clk 00:24:51]} {[%emt 00:01:20]} Bxb5 {[%clk 00:13:33]} {[%emt
00:01:33]} 22. cxb5 {[%clk 00:25:06]} {[%emt 00:00:14]} Nb4 {[%clk 00:12:42]}
{[%emt 00:01:22]} 23. Bc4 {[%clk 00:24:59]} {[%emt 00:00:37]} Kg8 {[%clk
00:08:38]} {[%emt 00:04:34]} 24. Rce1 {[%clk 00:19:09]} {[%emt 00:06:19]} Qc7
{[%clk 00:07:55]} {[%emt 00:01:14]} 25. Rhf1 {[%clk 00:18:43]} {[%emt
00:00:56]} Rf8 {[%clk 00:05:01]} {[%emt 00:03:24]} 26. Qe3 {[%clk 00:14:02]}
{[%emt 00:05:10]} Bd4 {[%clk 00:03:47]} {[%emt 00:01:44]} 27. Qg3 {[%clk
00:14:21]} {[%emt 00:00:12]} Qd7 {[%clk 00:03:15]} {[%emt 00:01:02]} 28. Qh3
{[%clk 00:10:31]} {[%emt 00:04:20]} f5 {[%clk 00:01:06]} {[%emt 00:02:38]} 29.
Re2 {[%clk 00:04:43]} {[%emt 00:06:19]} Kh8 {[%clk 00:00:47]} {[%emt 00:00:49]}
30. Rfe1 {[%clk 00:04:42]} {[%emt 00:00:31]} Qe8 {[%clk 00:00:32]} {[%emt
00:00:44]} 31. exf5 {[%clk 00:03:44]} {[%emt 00:01:28]} gxf5 {[%clk 00:00:35]}
{[%emt 00:00:28]} 32. Rxe7 {[%clk 00:03:49]} {[%emt 00:00:25]} Qg6 {[%clk
00:00:50]} {[%emt 00:00:15]} 33. Rxb7 {[%clk 00:01:51]} {[%emt 00:02:27]} Rg8
{[%clk 00:00:40]} {[%emt 00:00:39]} 34. Re6 {[%clk 00:01:23]} {[%emt 00:00:58]}
Bf6 {[%clk 00:00:34]} {[%emt 00:00:37]} 35. Rxf6 {[%clk 00:01:42]} {[%emt
00:00:11]} 1-0